bitfinex/quotes_BTCUSD_20251114
["timestamp","ask_amount","ask_price","bid_price","bid_amount"]
[1763127015785,0.00250962,95180.0,95172.0,0.001]
[1763127015992,0.01263686,95190.0,95179.0,0.10479654]
[1763127016196,0.00250962,95180.0,95172.0,0.001]
[1763127016399,0.01363686,95180.0,95172.0,0.001]
[1763127016619,0.00250962,95170.0,95162.0,0.10479654]
[1763127016842,0.01263686,95160.0,95130.0,0.01051193]
[1763127017062,0.01263686,95170.0,95159.0,0.10479654]
[1763127017482,0.01263686,95170.0,95159.0,0.08012218]
[1763127017683,0.00250962,95160.0,95152.0,0.04341874]
[1763127017897,0.00263686,95160.0,95152.0,0.36641874]
[1763127018082,0.00263686,95170.0,95160.0,0.01050861]
[1763127018227,0.0243287,95208.0,95152.0,0.36641874]
[1763127018228,0.00263686,95160.0,95152.0,0.36641874]
[1763127018607,0.0007546,95150.0,95142.0,0.00045526]
[1763127019348,0.0007546,95160.0,95143.0,0.04341874]
[1763127019596,0.0007546,95160.0,95150.0,0.938172]
[1763127020177,0.0007546,95160.0,95150.0,0.83337546]
[1763127020348,0.0007546,95160.0,95142.0,0.07818967]
[1763127020888,0.0007158,95151.0,95150.0,0.8767942]
[1763127021086,0.0007546,95150.0,95142.0,0.07818967]
[1763127021430,0.0007546,95150.0,95142.0,0.00045526]
[1763127022626,0.0017546,95150.0,95142.0,0.00045526]
[1763127022963,0.0107546,95150.0,95142.0,0.00045526]
[1763127023286,0.0117546,95150.0,95142.0,0.00045526]
[1763127023695,0.0127546,95150.0,95142.0,0.00045526]
[1763127024096,0.0127546,95150.0,95115.0,0.09057]
[1763127024097,0.0117546,95150.0,95117.0,0.03250526]
[1763127024334,0.0007546,95130.0,95117.0,0.03264178]
[1763127024856,0.0107546,95130.0,95117.0,0.03264178]
[1763127026288,0.01,95120.0,95117.0,0.03264178]
[1763127026963,0.0017546,95130.0,95117.0,0.03264178]
[1763127026964,0.84513005,95130.0,95117.0,0.03264178]
[1763127027156,0.01,95120.0,95117.0,0.03264178]
[1763127027706,0.01952781,95119.0,95117.0,0.03264178]
[1763127027903,0.01,95120.0,95117.0,0.03264178]
[1763127028541,0.323,95123.0,95117.0,0.03264178]
[1763127028916,0.01950944,95122.0,95117.0,0.03264178]
[1763127029129,0.323,95123.0,95117.0,0.03264178]
[1763127029130,0.001,95120.0,95117.0,0.03264178]
[1763127029330,0.323,95123.0,95117.0,0.03264178]
[1763127029560,0.32247741,95123.0,95117.0,0.03264178]
[1763127029798,0.01,95120.0,95117.0,0.03264178]
[1763127030243,0.32347741,95123.0,95117.0,0.03264178]
[1763127030576,0.32247741,95123.0,95117.0,0.03264178]
[1763127030981,0.0007546,95130.0,95117.0,0.12944178]
[1763127031336,0.001,95120.0,95117.0,0.11144178]
[1763127031547,0.02326,95129.0,95117.0,0.11144178]
[1763127031969,0.001,95120.0,95117.0,0.11144178]
[1763127032513,0.002,95120.0,95117.0,0.11144178]
[1763127032923,0.001,95120.0,95117.0,0.11144178]
[1763127035134,0.002,95120.0,95117.0,0.11144178]
[1763127035951,0.012,95120.0,95117.0,0.11144178]
[1763127036161,0.02022915,95119.0,95117.0,0.11144178]
[1763127036383,0.02628286,95119.0,95117.0,0.11144178]
[1763127036596,0.01742194,95119.0,95117.0,0.11144178]
[1763127036861,0.011,95120.0,95117.0,0.11144178]
[1763127037064,0.011,95120.0,95117.0,0.01464178]
[1763127037065,0.04341874,95118.0,95117.0,0.01464178]
[1763127037293,0.0504889,95118.0,95109.0,0.0968]
[1763127037480,0.04341874,95116.0,95109.0,0.09693655]
[1763127037847,0.01,95110.0,95109.0,0.09693655]
[1763127038051,0.02628424,95114.0,95109.0,0.09693655]
[1763127038255,0.01,95110.0,95109.0,0.09693655]
[1763127038461,0.06970215,95117.0,95109.0,0.08093655]
[1763127038676,0.14821528,95127.0,95109.0,0.08093655]
[1763127038677,0.11368,95158.0,95109.0,0.29122074]
[1763127038884,0.11368,95158.0,95118.0,0.25740514]
[1763127038885,0.001,95119.0,95118.0,0.25740514]
[1763127039532,0.0007546,95130.0,95118.0,0.04714]
[1763127039733,0.00024782,95134.0,95127.0,0.21024408]
[1763127041203,0.00024782,95134.0,95118.0,0.04714]
[1763127041406,0.0007546,95130.0,95120.0,0.21025941]
[1763127041651,0.0007546,95130.0,95118.0,0.04714]
[1763127041652,0.02628038,95128.0,95118.0,0.04714]
[1763127041860,0.01282309,95128.0,95118.0,0.04714]
[1763127041980,0.01759591,95128.0,95118.0,0.04714]
[1763127042599,0.00800048,95128.0,95118.0,0.04714]
[1763127042806,0.01679699,95128.0,95118.0,0.04714]
[1763127043136,0.00930027,95127.0,95118.0,0.04714]
[1763127043343,0.02298299,95126.0,95118.0,0.04714]
[1763127043545,0.01350328,95126.0,95118.0,0.04714]
[1763127043746,0.01,95120.0,95118.0,0.04714]
[1763127043948,0.01383642,95119.0,95118.0,0.04714]
[1763127044127,0.02673909,95128.0,95118.0,0.04714]
[1763127044471,0.01698109,95127.0,95118.0,0.04714]
[1763127044912,0.001,95126.0,95118.0,0.04714]
[1763127045118,0.02628093,95126.0,95118.0,0.04714]
[1763127045759,0.02628093,95126.0,95118.0,0.02314]
[1763127045974,0.01731067,95125.0,95118.0,0.02314]
[1763127046346,0.001,95120.0,95118.0,0.02314]
[1763127046750,0.02628038,95128.0,95118.0,0.02314]
[1763127047178,0.001,95126.0,95118.0,0.02314]
[1763127047300,0.002,95125.0,95118.0,0.02314]
[1763127047701,0.001,95120.0,95118.0,0.23340441]
[1763127047896,0.002,95125.0,95118.0,0.23340441]
[1763127047897,0.002,95125.0,95122.0,0.21025492]
[1763127048108,0.002,95125.0,95123.0,0.21025322]
[1763127048730,0.02326,95129.0,95128.0,0.21024304]
[1763127049068,0.0007546,95140.0,95131.0,0.25365515]
[1763127049876,0.0007546,95140.0,95125.0,0.04341874]
[1763127050144,0.0007546,95130.0,95122.0,0.08074468]
[1763127050492,0.0007546,95130.0,95122.0,0.28830319]
[1763127050878,0.0007546,95140.0,95125.0,0.2102486]
[1763127051278,0.0007546,95140.0,95118.0,0.23340498]
[1763127051480,0.0007546,95130.0,95118.0,0.02314]
[1763127051681,0.0007546,95130.0,95121.0,0.21025695]
[1763127051883,0.0007546,95140.0,95131.0,0.21023641]
[1763127052543,0.0007546,95140.0,95129.0,0.21024083]
[1763127052544,0.0007546,95140.0,95130.0,0.21023734]
[1763127052716,0.0007546,95140.0,95130.0,0.13223734]
[1763127053085,0.0007546,95140.0,95127.0,0.21024525]
[1763127053287,0.0007546,95140.0,95130.0,0.21023667]
[1763127053483,0.0007546,95140.0,95131.0,0.001]
[1763127055237,0.0007546,95140.0,95130.0,0.21023774]
[1763127055904,0.02627209,95158.0,95130.0,0.21023774]
[1763127056110,0.0007546,95140.0,95130.0,0.21023774]
[1763127056734,0.0007546,95140.0,95125.0,0.04341874]
[1763127056976,0.0007546,95140.0,95130.0,0.21023795]
[1763127057185,0.0007546,95140.0,95130.0,0.21023693]
[1763127057389,0.0007546,95140.0,95130.0,0.001]
[1763127057613,0.0007546,95140.0,95130.0,0.21073798]
[1763127057814,0.0007546,95140.0,95130.0,0.21073747]
[1763127058493,0.0007546,95140.0,95130.0,0.21023747]
[1763127060349,0.0007546,95160.0,95133.0,0.36641874]
[1763127060563,0.00793377,95149.0,95148.0,0.57661758]
[1763127060796,0.01451,95166.0,95165.0,0.57658003]
[1763127061002,0.0007546,95190.0,95170.0,0.56829384]
[1763127061231,0.01961538,95189.0,95182.0,0.2101216]
[1763127061441,0.0002,95210.0,95182.0,0.04341874]
[1763127061655,0.0007546,95200.0,95182.0,0.04341874]
[1763127061862,0.0002,95210.0,95182.0,0.04341874]
[1763127061863,0.0007546,95190.0,95182.0,0.04341874]
[1763127062081,0.0007546,95200.0,95186.0,0.04341874]
[1763127062292,0.00065535,95210.0,95182.0,0.07995311]
[1763127062293,0.0007546,95190.0,95182.0,0.07995311]
[1763127062516,0.00065535,95210.0,95151.0,0.21019028]
[1763127062517,0.0007546,95180.0,95151.0,0.21019028]
[1763127062770,0.0007546,95170.0,95144.0,0.10479654]
[1763127063000,0.01019999,95210.0,95130.0,0.01051193]
[1763127063001,0.0007546,95150.0,95130.0,0.01051193]
[1763127063202,0.0007546,95140.0,95139.0,0.21021873]
[1763127063421,0.01268413,95178.0,95149.0,0.21019663]
[1763127063422,0.0007546,95150.0,95149.0,0.21019663]
[1763127063611,0.0007546,95160.0,95153.0,0.21018709]
[1763127063828,0.0007546,95140.0,95139.0,0.21021873]
[1763127064054,0.0007546,95150.0,95144.0,0.001]
[1763127064542,0.0007546,95150.0,95144.0,0.07820247]
[1763127064829,0.0007546,95150.0,95144.0,0.001]
[1763127065041,0.0007546,95150.0,95144.0,0.21120625]
[1763127065257,0.0008911,95160.0,95149.0,0.21019663]
[1763127065481,0.0008911,95160.0,95146.0,0.21020115]
[1763127065715,0.0008911,95160.0,95152.0,0.21018845]
[1763127065932,0.0008911,95160.0,95150.0,0.210193]
[1763127066176,0.0008911,95160.0,95152.0,0.21019001]
[1763127066395,0.0008911,95160.0,95151.0,0.10479654]
[1763127066396,0.56849384,95210.0,95180.0,0.0105064]
[1763127066606,0.0007546,95190.0,95176.0,0.323]
[1763127066823,0.0007546,95190.0,95178.0,0.323]
[1763127067043,0.0007546,95200.0,95178.0,0.323]
[1763127067260,0.0007546,95170.0,95165.0,0.21016129]
[1763127067472,0.0007546,95180.0,95172.0,0.323]
[1763127067725,0.0007546,95180.0,95175.0,0.323]
[1763127067932,0.0007546,95180.0,95174.0,0.323]
[1763127068371,0.0007546,95190.0,95175.0,0.21013716]
[1763127068587,0.00120986,95190.0,95175.0,0.21013716]
[1763127068794,0.00120986,95190.0,95180.0,0.53312639]
[1763127069241,0.00120986,95190.0,95182.0,0.2101223]
[1763127069490,0.00045526,95190.0,95188.0,0.2101098]
[1763127069703,0.00045526,95190.0,95180.0,0.08053789]
[1763127069922,0.00045526,95190.0,95186.0,0.323]
[1763127070148,0.00145526,95190.0,95189.0,0.323]
[1763127070370,0.0002,95210.0,95189.0,0.323]
[1763127070371,0.0002,95210.0,95190.0,0.21010389]
[1763127070592,0.00033646,95210.0,95196.0,0.323]
[1763127070816,0.5693849,95210.0,95196.0,0.323]
[1763127071043,0.02099849,95209.0,95196.0,0.323]
[1763127071296,0.02625829,95208.0,95201.0,0.21007986]
[1763127071497,0.00109106,95210.0,95196.0,0.323]
[1763127071707,0.00109106,95210.0,95180.0,0.07898061]
[1763127071708,0.0007546,95190.0,95180.0,0.07898061]
[1763127071889,0.0007546,95170.0,95166.0,0.21015886]
[1763127072063,0.0007546,95180.0,95167.0,0.10479654]
[1763127072259,0.0007546,95190.0,95180.0,0.21012815]
[1763127072590,0.0007546,95190.0,95183.0,0.16412138]
[1763127072799,0.0007546,95200.0,95193.0,0.21009761]
[1763127073001,0.0007546,95200.0,95180.0,0.56829384]
[1763127073002,0.00013644,95200.0,95191.0,0.323]
[1763127073223,0.00013644,95200.0,95180.0,0.0105064]
[1763127073224,0.0007546,95190.0,95188.0,0.323]
[1763127073433,0.00013644,95200.0,95199.0,0.53308624]
[1763127073612,0.00013644,95200.0,95199.0,0.57650498]
[1763127073769,0.0002,95210.0,95209.0,0.57648291]
[1763127073970,0.0002,95220.0,95219.0,0.323]
[1763127075148,0.0002,95220.0,95218.0,0.323]
[1763127075367,0.0002,95220.0,95218.0,0.5330429]
[1763127075540,0.0002,95220.0,95218.0,0.323]
[1763127075681,0.0002,95220.0,95218.0,0.53304336]
[1763127076079,0.0002,95220.0,95219.0,0.04441874]
[1763127076497,0.0002,95220.0,95219.0,0.04341874]
[1763127076724,0.0002,95230.0,95229.0,0.53302005]
[1763127076930,0.00033639,95230.0,95229.0,0.323]
[1763127078218,0.00033639,95230.0,95229.0,0.40120464]
[1763127078663,0.00297703,95230.0,95229.0,0.40120464]
[1763127078868,0.00373163,95230.0,95229.0,0.001]
[1763127079043,0.00297703,95230.0,95229.0,0.001]
[1763127079257,0.01297703,95230.0,95229.0,0.001]
[1763127079533,0.01,95220.0,95219.0,0.00012]
[1763127079825,0.0007546,95180.0,95177.0,0.21013359]
[1763127080060,0.0007546,95190.0,95182.0,0.10479654]
[1763127080264,0.0007546,95190.0,95177.0,0.07972091]
[1763127080474,0.0007546,95170.0,95157.0,0.2101774]
[1763127080683,0.0007546,95170.0,95154.0,0.05611317]
[1763127080823,0.0007546,95160.0,95152.0,0.05611317]
[1763127081025,0.0007546,95170.0,95159.0,0.21017454]
[1763127081232,0.0007546,95170.0,95160.0,0.2101704]
[1763127081446,0.0007546,95170.0,95154.0,0.00045526]
[1763127081651,0.0007546,95160.0,95154.0,0.00045526]
[1763127081864,0.0007546,95160.0,95154.0,0.00049526]
[1763127082294,0.0007546,95170.0,95155.0,0.21018338]
[1763127082466,0.0007546,95180.0,95166.0,0.21015784]
[1763127082686,0.0007546,95180.0,95163.0,0.21016562]
[1763127082687,0.0007546,95180.0,95167.0,0.21015688]
[1763127082864,0.0007546,95160.0,95154.0,0.05668843]
[1763127083091,0.35782151,95210.0,95159.0,0.21017454]
[1763127083092,0.0007546,95170.0,95159.0,0.21017454]
[1763127083292,0.0007546,95160.0,95154.0,0.00061526]
[1763127083662,0.0007546,95170.0,95159.0,0.323]
[1763127083856,0.0017546,95180.0,95167.0,0.323]
[1763127084430,0.0007546,95160.0,95156.0,0.323]
[1763127084624,0.0007546,95170.0,95156.0,0.323]
[1763127084851,0.0007546,95170.0,95166.0,0.21015723]
[1763127085065,0.0017546,95180.0,95160.0,0.56829384]
[1763127085269,0.0017546,95180.0,95175.0,0.21013707]
[1763127085477,0.0007546,95190.0,95180.0,0.21012622]
[1763127085675,0.10479654,95209.0,95171.0,0.07803954]
[1763127085676,0.0007546,95180.0,95171.0,0.07803954]
[1763127085876,0.0007546,95180.0,95170.0,0.01050751]
[1763127086075,0.0007546,95200.0,95185.0,0.21011596]
[1763127086309,0.0007546,95200.0,95188.0,0.21010886]
[1763127086535,0.02625829,95208.0,95171.0,0.50750706]
[1763127086536,0.0007546,95180.0,95171.0,0.50750706]
[1763127086786,0.0007546,95190.0,95189.0,0.53310831]
[1763127087003,0.0007546,95200.0,95199.0,0.21008624]
[1763127087235,0.0007546,95210.0,95202.0,0.21007898]
[1763127087481,0.00089099,95210.0,95202.0,0.21007898]
[1763127087725,0.00089099,95210.0,95200.0,0.323]
[1763127087935,0.00013639,95210.0,95209.0,0.53306417]
[1763127088675,0.00113639,95210.0,95209.0,0.53306417]
[1763127088883,0.0007546,95200.0,95183.0,0.01048163]
[1763127089093,0.0007546,95200.0,95180.0,0.0105064]
[1763127089094,0.0007546,95200.0,95189.0,0.21010792]
[1763127089298,0.0007546,95200.0,95187.0,0.323]
[1763127089514,0.0007546,95180.0,95177.0,0.21013471]
[1763127089711,0.0007546,95190.0,95179.0,0.323]
[1763127090122,0.01255813,95209.0,95160.0,0.01050861]
[1763127090123,0.0007546,95170.0,95160.0,0.01050861]
[1763127090334,0.0007546,95180.0,95168.0,0.21015412]
[1763127090610,0.0007546,95180.0,95167.0,0.21015478]
[1763127090611,0.0007546,95180.0,95169.0,0.323]
[1763127090769,0.0007546,95180.0,95173.0,0.21014205]
[1763127090969,0.0007546,95180.0,95168.0,0.00045526]
[1763127091430,0.00096336,95169.0,95168.0,0.00045526]
[1763127091952,0.00096336,95169.0,95168.0,0.32345526]
[1763127092150,0.00096336,95169.0,95130.0,1.05118853]
[1763127092151,0.0007546,95160.0,95140.0,0.56829384]
[1763127092353,0.0007546,95160.0,95159.0,0.21017454]
[1763127092561,0.0007546,95170.0,95162.0,0.21016663]
[1763127092771,0.0007546,95150.0,95140.0,0.00013644]
[1763127093764,0.323,95149.0,95140.0,0.00013644]
[1763127093974,0.09020484,95148.0,95140.0,0.00013644]
[1763127094401,0.34255711,95147.0,95140.0,0.00013644]
[1763127094622,0.01955821,95146.0,95140.0,0.00013644]
[1763127094837,0.323,95147.0,95140.0,0.00013644]
[1763127094978,0.01955848,95146.0,95140.0,0.00013644]
[1763127095194,0.323,95144.0,95140.0,0.00013644]
[1763127095602,0.0107546,95150.0,95140.0,0.00013644]
[1763127095806,0.002,95146.0,95140.0,0.00013644]
[1763127096208,0.002,95147.0,95140.0,0.00013644]
[1763127096543,0.002,95144.0,95140.0,0.00013644]
[1763127096717,0.05730484,95143.0,95140.0,0.00013644]
[1763127097202,0.002,95147.0,95140.0,0.00013644]
[1763127097373,0.323,95149.0,95140.0,0.00013644]
[1763127097829,0.00024779,95143.0,95140.0,0.00013644]
[1763127099425,0.00424779,95143.0,95140.0,0.00013644]
[1763127099639,0.00424779,95143.0,95118.0,0.23340377]
[1763127099640,0.0007546,95130.0,95118.0,0.23340377]
[1763127099834,0.0007546,95130.0,95118.0,0.0232765]
[1763127100204,0.0007546,95130.0,95122.0,0.21025467]
[1763127100426,0.0007546,95130.0,95118.0,0.0232765]
[1763127100626,0.0007546,95140.0,95134.0,0.21022802]
[1763127100833,0.00424779,95143.0,95141.0,0.2102126]
[1763127101243,0.0007546,95130.0,95120.0,0.57880687]
[1763127101376,0.0007546,95140.0,95134.0,0.21022834]
[1763127101592,0.0007546,95140.0,95135.0,0.21022557]
[1763127101791,0.0007546,95140.0,95133.0,0.21022991]
[1763127102195,0.0007546,95140.0,95125.0,0.21024967]
[1763127102425,0.0007546,95140.0,95127.0,0.36641874]
[1763127102628,0.0007546,95140.0,95131.0,0.36641874]
[1763127102898,0.0007546,95140.0,95137.0,0.21022132]
[1763127103097,0.00024779,95143.0,95131.0,0.36641874]
[1763127103303,0.00024779,95143.0,95138.0,0.2102192]
[1763127103616,0.00024779,95143.0,95141.0,0.21021314]
[1763127103986,0.00024779,95143.0,95142.0,0.2102121]
[1763127104186,0.00024779,95143.0,95141.0,0.323]
[1763127104746,0.00024779,95143.0,95141.0,0.53321247]
[1763127105644,0.00024779,95143.0,95140.0,0.21021567]
[1763127105899,0.00024779,95143.0,95130.0,0.56829384]
[1763127106105,0.00024779,95143.0,95123.0,0.28743418]
[1763127106106,0.0007546,95140.0,95123.0,0.28743418]
[1763127106254,0.0007546,95140.0,95130.0,0.21023757]
[1763127106459,0.0007546,95140.0,95133.0,0.21023132]
[1763127106800,0.56829384,95170.0,95133.0,0.21023132]
[1763127106801,0.02818184,95215.0,95180.0,0.0105064]
[1763127106988,0.02625664,95214.0,95190.0,0.56829384]
[1763127107189,0.01,95220.0,95190.0,0.0105053]
[1763127107364,0.58849382,95230.0,95120.0,0.01051303]
[1763127107365,0.00999999,95180.0,95120.0,0.01051303]
[1763127107561,0.01,95170.0,95130.0,0.57880577]
[1763127107762,0.02626905,95169.0,95140.0,0.01051082]
[1763127107927,0.02626905,95169.0,95140.0,0.0001365]
[1763127108331,0.34926905,95169.0,95140.0,0.0001365]
[1763127108531,0.43429987,95168.0,95140.0,0.0001365]
[1763127109151,0.3330373,95167.0,95140.0,0.0001365]
[1763127109347,0.01964683,95166.0,95140.0,0.0001365]
[1763127109756,0.01,95150.0,95140.0,0.0001365]
[1763127110078,0.01226533,95149.0,95140.0,0.0001365]
[1763127110273,0.01998374,95159.0,95140.0,0.0001365]
[1763127110510,0.323,95179.0,95144.0,0.21020678]
[1763127110678,0.323,95177.0,95149.0,0.21019521]
[1763127111038,0.002,95168.0,95142.0,0.2102121]
[1763127111242,0.002,95168.0,95155.0,0.21018123]
[1763127111420,0.001,95168.0,95140.0,0.0001365]
[1763127111666,0.01520308,95167.0,95147.0,0.21019994]
[1763127111837,0.02626988,95166.0,95155.0,0.21018128]
[1763127111995,0.02626712,95176.0,95153.0,0.2101863]
[1763127112198,0.01,95170.0,95140.0,0.01072732]
[1763127112383,0.01951423,95169.0,95140.0,0.22094249]
[1763127112583,0.002,95168.0,95140.0,0.22098249]
[1763127112781,0.0002478,95152.0,95141.0,0.21021253]
[1763127112999,0.0002478,95152.0,95142.0,0.21021143]
[1763127113298,0.0002478,95152.0,95140.0,0.22098381]
[1763127113299,0.0002478,95152.0,95140.0,0.0002565]
[1763127114331,0.0002478,95152.0,95141.0,0.21021431]
[1763127114552,0.0002478,95152.0,95140.0,0.0002565]
[1763127114952,0.0012478,95152.0,95140.0,0.0002565]
[1763127115498,0.0002478,95152.0,95140.0,0.0002565]
[1763127115701,0.0012478,95152.0,95140.0,0.0002565]
[1763127115903,0.0012478,95152.0,95145.0,0.21020534]
[1763127116182,0.0012478,95152.0,95140.0,0.0002565]
[1763127116758,0.0012478,95152.0,95130.0,0.2702565]
[1763127116958,0.0012478,95152.0,95111.0,0.42055837]
[1763127116959,0.0002478,95152.0,95134.0,0.21022825]
[1763127117210,0.0012478,95152.0,95133.0,0.21022757]
[1763127117416,0.0012478,95152.0,95139.0,0.21021862]
[1763127117577,0.0012478,95152.0,95137.0,0.21022132]
[1763127117787,0.0002478,95152.0,95138.0,0.21022021]
[1763127118005,0.01,95150.0,95123.0,0.07687706]
[1763127118160,0.01347149,95149.0,95112.0,0.30707682]
[1763127118362,0.01,95150.0,95113.0,0.10479654]
[1763127118582,0.0002478,95152.0,95136.0,0.21022533]
[1763127118784,0.0002478,95152.0,95118.0,0.23339851]
[1763127118785,0.0012478,95152.0,95129.0,0.21024025]
[1763127119007,0.0012478,95152.0,95120.0,0.22077154]
[1763127119240,0.0012478,95152.0,95131.0,0.21023573]
[1763127119416,0.0012478,95152.0,95120.0,0.01051303]
[1763127119585,0.0012478,95152.0,95128.0,0.21024205]
[1763127119781,0.0012478,95152.0,95129.0,0.21023932]
[1763127119987,0.0012478,95152.0,95127.0,0.21024454]
[1763127119988,0.0002478,95152.0,95127.0,0.21024454]
[1763127120310,0.001,95149.0,95123.0,0.29096091]
[1763127120522,0.02627485,95148.0,95123.0,0.0807089]
[1763127120737,0.01,95130.0,95120.0,8e-05]
[1763127120941,0.01,95130.0,95120.0,0.00012]
[1763127121164,0.04341874,95129.0,95120.0,0.00012]
[1763127121368,0.04341874,95127.0,95120.0,0.00012]
[1763127121586,0.04341874,95125.0,95120.0,0.00012]
[1763127121789,0.01960653,95124.0,95120.0,0.00012]
[1763127122027,0.04341874,95125.0,95120.0,0.00012]
[1763127122301,0.04341874,95123.0,95120.0,0.00012]
[1763127122508,0.47121528,95121.0,95120.0,0.00012]
[1763127122709,0.47121528,95121.0,95118.0,0.02314]
[1763127122710,0.04341874,95119.0,95112.0,0.08527399]
[1763127122994,0.04341874,95117.0,95112.0,0.08541054]
[1763127123190,0.04341874,95115.0,95112.0,0.08541054]
[1763127123419,0.04341874,95113.0,95112.0,0.08541054]
[1763127123626,0.41838569,95113.0,95112.0,0.08541054]
[1763127124252,0.02938415,95113.0,95112.0,0.00013655]
[1763127124462,0.01958951,95113.0,95112.0,0.00013655]
[1763127124667,0.0262044,95113.0,95112.0,0.00013655]
[1763127124875,0.01958951,95113.0,95112.0,0.00013655]
[1763127125079,0.02158951,95113.0,95112.0,0.00013655]
[1763127125282,0.02358951,95113.0,95112.0,0.00013655]
[1763127125485,0.004,95113.0,95112.0,0.00017655]
[1763127126094,0.004,95113.0,95112.0,0.00021655]
[1763127126268,0.002,95113.0,95112.0,0.00021655]
[1763127126482,0.002,95113.0,95112.0,0.00025655]
[1763127126824,0.0365,95113.0,95112.0,0.00025655]
[1763127127199,0.0345,95113.0,95112.0,0.00025655]
[1763127127343,0.0355,95113.0,95112.0,0.00025655]
[1763127127951,0.05501251,95113.0,95112.0,0.00025655]
[1763127128182,0.0647673,95113.0,95112.0,0.00025655]
[1763127128378,0.10818604,95113.0,95112.0,0.00025655]
[1763127128601,0.10818604,95113.0,95112.0,0.09334655]
[1763127129498,0.10618604,95113.0,95112.0,0.09334655]
[1763127129635,0.1237404,95113.0,95112.0,0.09334655]
[1763127129849,0.14624412,95113.0,95112.0,0.09334655]
[1763127130078,0.14624412,95113.0,95090.0,0.0004]
[1763127130079,0.04341874,95109.0,95090.0,0.0004]
[1763127130267,0.04341874,95099.0,95090.0,0.0004]
[1763127130467,0.03999998,95100.0,95090.0,0.0004]
[1763127130468,0.01951251,95098.0,95090.0,0.0004]
[1763127130675,0.04341874,95096.0,95090.0,0.0004]
[1763127130887,0.01951251,95095.0,95090.0,0.0004]
[1763127131211,0.00595125,95097.0,95090.0,0.0004]
[1763127131423,0.00999999,95100.0,95090.0,0.0004]
[1763127131424,0.47121528,95091.0,95090.0,0.0004]
[1763127131627,0.47121528,95091.0,95064.0,0.04605]
[1763127131628,0.38641872,95090.0,95064.0,0.04605]
[1763127131856,0.04341874,95088.0,95064.0,0.04605]
[1763127132028,0.36641874,95086.0,95064.0,0.04605]
[1763127132271,0.04341874,95084.0,95082.0,0.09309]
[1763127132496,0.11368,95083.0,95082.0,0.09309]
[1763127132700,0.43668,95083.0,95082.0,0.09309]
[1763127132901,0.367668,95083.0,95082.0,0.09309]
[1763127134280,0.375668,95083.0,95082.0,0.09309]
[1763127134487,0.41508674,95083.0,95082.0,0.09309]
[1763127134999,0.41708674,95083.0,95082.0,0.09309]
[1763127135638,0.369668,95083.0,95082.0,0.09309]
[1763127136038,0.371668,95083.0,95082.0,0.09309]
[1763127136332,0.369668,95083.0,95082.0,0.09309]
[1763127136544,0.367668,95083.0,95082.0,0.09369624]
[1763127136746,0.370668,95083.0,95082.0,0.09369624]
[1763127136947,0.369668,95083.0,95082.0,0.09369624]
[1763127137368,0.327,95083.0,95082.0,0.09369624]
[1763127137582,0.325,95083.0,95082.0,0.09369624]
[1763127137757,0.002,95083.0,95082.0,0.09369624]
[1763127137985,0.004,95083.0,95082.0,0.09369624]
[1763127138144,0.002,95083.0,95082.0,0.09369624]
[1763127138544,0.03612911,95083.0,95082.0,0.09369624]
[1763127138909,0.03812911,95083.0,95082.0,0.04665624]
[1763127139115,0.03812911,95083.0,95082.0,0.03365624]
[1763127139782,0.04012911,95083.0,95082.0,0.03365624]
[1763127139973,0.06442192,95083.0,95082.0,0.03365624]
[1763127140191,0.06442192,95083.0,95082.0,0.12674624]
[1763127140413,0.04341874,95079.0,95072.0,0.04605]
[1763127140620,0.04341874,95077.0,95072.0,0.04605]
[1763127140857,0.01999998,95080.0,95073.0,0.09309]
[1763127141056,0.02629475,95076.0,95073.0,0.09309]
[1763127141672,0.02629475,95076.0,95073.0,0.09354552]
[1763127141872,0.12996413,95076.0,95073.0,0.09354552]
[1763127142085,0.02576735,95075.0,95073.0,0.09354552]
[1763127142630,0.34876735,95075.0,95073.0,0.09354552]
[1763127142826,0.323,95075.0,95073.0,0.09354552]
[1763127143255,0.002,95075.0,95073.0,0.09354552]
[1763127143447,0.002,95076.0,95073.0,0.30390781]
[1763127143650,0.04665,95089.0,95082.0,0.04605]
[1763127143866,0.004,95075.0,95074.0,0.09309]
[1763127144480,0.005,95075.0,95074.0,0.09309]
[1763127145039,0.003,95075.0,95074.0,0.09309]
[1763127145694,0.02629171,95087.0,95074.0,0.09309]
[1763127145907,0.01,95080.0,95074.0,0.09309]
[1763127146125,0.001,95075.0,95074.0,0.09309]
[1763127146574,0.001,95075.0,95073.0,0.00070357]
[1763127146795,0.02629005,95093.0,95073.0,0.00070357]
[1763127147073,0.01,95100.0,95082.0,0.02909]
[1763127147285,0.02053,95108.0,95101.0,0.04605]
[1763127147492,0.02053,95108.0,95095.0,0.04605]
[1763127147493,0.01958375,95107.0,95095.0,0.04605]
[1763127147731,0.01958375,95107.0,95082.0,0.02909]
[1763127147732,0.04685,95096.0,95082.0,0.02909]
[1763127147942,0.35880213,95106.0,95082.0,0.02909]
[1763127147943,0.33921838,95106.0,95082.0,0.02909]
[1763127148161,0.01,95100.0,95095.0,0.06191]
[1763127148619,0.02822851,95124.0,95095.0,0.06191]
[1763127148620,0.10631283,95121.0,95096.0,0.09309]
[1763127148829,0.0296056,95120.0,95112.0,0.0404]
[1763127149035,0.02940841,95119.0,95112.0,0.0404]
[1763127149239,0.02940841,95118.0,95112.0,0.0404]
[1763127149440,0.02940841,95117.0,95113.0,0.0404]
[1763127149708,0.00151629,95121.0,95113.0,0.0404]
[1763127149709,0.0196056,95116.0,95113.0,0.0404]
[1763127149985,0.0196056,95115.0,95114.0,0.09309]
[1763127150425,0.001,95120.0,95118.0,0.21026455]
[1763127150428,0.00151629,95121.0,95114.0,0.09309]
[1763127150703,0.001,95117.0,95115.0,0.21026997]
[1763127150941,0.00151629,95121.0,95116.0,0.0916]
[1763127151358,0.00151629,95121.0,95119.0,0.21026101]
[1763127151599,0.00151629,95121.0,95116.0,0.0916]
[1763127151600,0.13782,95160.0,95120.0,0.10211303]
[1763127151820,0.0471,95166.0,95157.0,0.04181]
[1763127151821,0.04587795,95158.0,95157.0,0.04181]
[1763127152044,0.02627209,95158.0,95157.0,0.04181]
[1763127152241,0.00013635,95159.0,95157.0,0.04181]
[1763127152881,0.00313635,95159.0,95157.0,0.04181]
[1763127153339,0.00013635,95159.0,95157.0,0.04181]
[1763127153554,0.00113635,95159.0,95158.0,0.0426]
[1763127153763,0.00013635,95159.0,95158.0,0.0426]
[1763127154200,0.00113635,95159.0,95158.0,0.0426]
[1763127154440,0.00113635,95159.0,95157.0,0.1202078]
[1763127154885,0.00113635,95159.0,95157.0,0.04181]